fUSD/lending_fUSD_20260202
["ID","MTS","AMOUNT","RATE_DAILY","PERIOD"]
[404306464,1770052035462,151.0,0.00011516,2]
[404306465,1770052036033,-151.0,0.00011516,2]
[404306466,1770052036184,-151.0,0.00011516,2]
[404306467,1770052036426,-151.0,0.00011516,2]
[404306468,1770052036726,-151.0,0.00011516,2]
[404306469,1770052036822,-151.0,0.00011516,2]
[404306470,1770052038994,-151.0,0.00011516,2]
[404306471,1770052039021,-151.0,0.00011516,2]
[404306472,1770052039047,-151.0,0.00011516,2]
[404306473,1770052039435,-151.0,0.00011516,2]
[404306474,1770052040168,-228.99530603,0.00011516,2]
[404306475,1770052040235,-151.0,0.00011516,2]
[404306476,1770052040267,-4849.01,0.00011516,2]
[404306477,1770052040293,-151.0,0.00011516,2]
[404306478,1770052040313,-4698.01,0.00011516,2]
[404306479,1770052042057,-151.0,0.00011516,2]
[404306480,1770052042087,-200.0,0.00011516,2]
[404306481,1770052042117,-151.0,0.00011516,2]
[404306482,1770052042147,-151.0,0.00011516,2]
[404306483,1770052042227,-3694.01,0.00011516,2]
[404306484,1770052042279,-5000.01,0.00011516,2]
[404306485,1770052042328,-5000.01,0.00011516,2]
[404306486,1770052042447,-5000.01,0.00011516,2]
[404306487,1770052042564,-151.0,0.00011516,2]
[404306488,1770052042599,-4698.01,0.00011516,2]
[404306489,1770052042663,-5000.01,0.00011516,2]
[404306490,1770052042801,-5000.01,0.00011516,2]
[404306491,1770052042940,-5000.01,0.00011516,2]
[404306493,1770052048094,-151.0,0.00011516,2]
[404306494,1770052048124,-151.0,0.00011516,2]
[404306495,1770052048151,-500.0,0.00011516,2]
[404306496,1770052048179,-151.0,0.00011516,2]
[404306497,1770052048206,-500.0,0.00011516,2]
[404306498,1770052048233,-404.15119259,0.00011516,2]
[404306499,1770052048262,-151.0,0.00011516,2]
[404306500,1770052048289,-483.70761482,0.00011516,2]
[404306501,1770052048410,-16.29238518,0.00011516,2]
[404306502,1770052048436,-151.0,0.00011516,2]
[404306503,1770052048463,-500.0,0.00011516,2]
[404306504,1770052048490,-151.0,0.00011516,2]
[404306505,1770052048517,-500.0,0.00011516,2]
[404306506,1770052048543,-500.0,0.00011516,2]
[404306507,1770052048569,-500.0,0.00011516,2]
[404306508,1770052048831,-16.29238518,0.00011516,2]
[404306509,1770052048846,-363.42522964,0.00011516,2]
[404306510,1770052050179,150.80525673,0.00013243,5]
[404306511,1770052051092,-120.28238518,0.00011516,2]
[404306512,1770052051123,-500.0,0.00011516,2]
[404306513,1770052051152,-500.0,0.00011516,2]
[404306514,1770052051180,-500.0,0.00011516,2]
[404306515,1770052051281,-1759.44522964,0.00011516,2]
[404306516,1770052054122,-5000.01,0.00011516,2]
[404306517,1770052060149,-500.0,0.00011516,2]
[404306518,1770052060195,-500.0,0.00011516,2]
[404306519,1770052060226,-500.0,0.00011516,2]
[404306520,1770052060257,-500.0,0.00011516,2]
[404306521,1770052060288,-500.0,0.00011516,2]
[404306522,1770052060430,-0.01,0.00011416,2]
[404306523,1770052062414,4700.0,0.000117,4]
[404306524,1770052063190,-5000.01,0.00011416,2]
[404306525,1770052064780,3223.35810133,0.000118,4]
[404306526,1770052064807,6276.64189867,0.000118,4]
[404306527,1770052066640,14300.0,0.000119,4]
[404306528,1770052068761,11319.08710133,0.000139,5]
[404306529,1770052068791,7780.91289867,0.000139,5]
[404306530,1770052069200,-5000.01,0.00011416,2]
[404306531,1770052072333,-5000.01,0.00011416,2]
[404306532,1770052072686,-5000.01,0.00011416,2]
[404306533,1770052072711,-5000.01,0.00011416,2]
[404306534,1770052072868,-5000.01,0.00011416,2]
[404306535,1770052072982,-34.51916194,0.00011416,2]
[404306536,1770052073009,-4930.97167612,0.00011416,2]
[404306537,1770052073107,-500.0,0.00011516,2]
[404306538,1770052073136,-500.0,0.00011516,2]
[404306539,1770052073164,-500.0,0.00011516,2]
[404306540,1770052073191,-500.0,0.00011516,2]
[404306541,1770052073221,-500.0,0.00011516,2]
[404306542,1770052073344,-500.0,0.00011516,2]
[404306543,1770052073797,174.66687349,0.00011416,2]
[404306544,1770052084296,2500.0,0.00011416,2]
[404306545,1770052090529,-2325.34312651,0.00011516,2]
[404306546,1770052093348,-5000.01,0.00011516,2]
[404306547,1770052099411,151.16695329,0.0002,20]
[404306548,1770052099447,-1320.1464773,0.00011416,2]
[404306549,1770052099481,-2359.7170454,0.00011516,2]
[404306550,1770052114771,5000.01,0.00011506,2]
[404306551,1770052114792,1659.116607,0.00011506,2]
[404306552,1770052126236,836.83007611,0.00011416,2]
[404306553,1770052142389,150.0,0.00011515,2]
[404306554,1770052172132,-2354.06331689,0.00011516,2]
[404306555,1770052177856,-5000.01,0.00011516,2]
[404306556,1770052187778,5000.01,0.00011416,2]
[404306557,1770052187800,5000.01,0.00011416,2]
[404306558,1770052187820,5000.01,0.00011416,2]
[404306559,1770052187844,5000.01,0.00011416,2]
[404306560,1770052187868,4162.945998,0.00011416,2]
[404306561,1770052201856,300.0,0.00011515,2]
[404306562,1770052202029,537.064002,0.00011515,2]
[404306563,1770052202051,662.935998,0.00011515,2]
[404306564,1770052212659,400.40460426,0.00011506,2]
[404306566,1770052219771,616.03494865,0.00011515,2]
[404306568,1770052228775,1246.9713726,0.00011416,2]
[404306569,1770052230317,500.0,0.00011416,2]
[404306573,1770052231881,-1630.87669183,0.00011516,2]
[404306580,1770052231939,-827.08473548,0.00011516,2]
[404306581,1770052231951,-856.52330817,0.00011516,2]
[404306582,1770052231994,-304.39711702,0.00011516,2]
[404306583,1770052232006,-482.13,0.00011516,2]
[404306584,1770052232018,-538.39856087,0.00011516,2]
[404306585,1770052232030,-1215.475,0.00011516,2]
[404306586,1770052232052,-7901.47365193,0.00011516,2]
[404306587,1770052232064,-415.04604479,0.00011516,2]
[404306588,1770052232075,-31124.28655155,0.00011516,2]
[404306589,1770052232104,-1309.68764366,0.00011516,2]
[404306600,1770052237953,-471.87366345,0.00011516,2]
[404306601,1770052238007,-670.10000021,0.00011516,2]
[404306602,1770052238018,-257.1530447,0.00011516,2]
[404306603,1770052238062,-1349655.29703882,0.00011516,2]
[404306604,1770052238072,-300.0,0.00011516,2]
[404306605,1770052238081,-195.0,0.00011516,2]
[404306606,1770052238091,-250.0,0.00011516,2]
[404306607,1770052238101,-300.0,0.00011516,2]
[404306608,1770052238110,-283.67074019,0.00011516,2]
[404306609,1770052238120,-195.0,0.00011516,2]
[404306610,1770052238130,-500.0,0.00011516,2]
[404306611,1770052238139,-250.0,0.00011516,2]
[404306612,1770052238150,-195.0,0.00011516,2]
[404306613,1770052238160,-500.0,0.00011516,2]
[404306614,1770052238170,-502.19943206,0.00011516,2]
[404306615,1770052238180,-1273.29157306,0.00011516,2]
[404306616,1770052238189,-649.36910503,0.00011516,2]
[404306617,1770052238198,-4173.74670489,0.00011516,2]
[404306618,1770052238208,-244.0,0.00011516,2]
[404306619,1770052238217,-410.99323129,0.000116,2]
[404306620,1770052238227,-151.0,0.000116,2]
[404306622,1770052238236,-500.0,0.00011615,2]
[404306624,1770052238247,-9999.99,0.00011615,2]
[404306625,1770052238258,-886.69,0.00011615,2]
[404306626,1770052238268,-50984.03,0.00011615,2]
[404306627,1770052238278,-343.53,0.00011615,2]
[404306628,1770052238288,-299.99,0.00011615,2]
[404306629,1770052238298,-150.99,0.00011615,2]
[404306631,1770052238310,-348.93,0.00011615,2]
[404306633,1770052238320,-2132.74,0.00011616,2]
[404306635,1770052238330,-188.002,0.00011616,2]
[404306636,1770052238339,-171.71,0.000117,2]
[404306638,1770052238351,-10662.6919,0.00011716,2]
[404306640,1770052238362,-1000.0,0.00011716,2]
[404306642,1770052238372,-684755.3579,0.00011716,2]
[404306643,1770052238383,-184.05,0.00011839,2]
[404306644,1770052238393,-302.32,0.00011872,2]
[404306645,1770052238403,-1856.0,0.00012016,2]
[404306646,1770052238412,-201.0,0.00012025,2]
[404306647,1770052238422,-1595.0,0.0001204,2]
[404306648,1770052238431,-52351.12,0.00012055,2]
[404306649,1770052238441,-200.0,0.00012064,2]
[404306650,1770052238451,-500.0,0.00012064,2]
[404306651,1770052238460,-200.0,0.00012064,2]
[404306652,1770052238470,-1352.0,0.00012064,2]
[404306653,1770052238479,-276.0,0.00012088,2]
[404306654,1770052238488,-320.0,0.00012112,2]
[404306655,1770052238497,-326.0,0.00012115,2]
[404306656,1770052238506,-500.0,0.00012125,2]
[404306657,1770052238515,-1085.0,0.00012125,2]
[404306658,1770052238525,-226.0,0.00012136,2]
[404306659,1770052238534,-34965.56083801,0.00012136,2]
[404306660,1770052238543,-24162.98599796,0.00012136,2]
[404306661,1770052238553,-997.0,0.00012149,2]
[404306662,1770052238565,-202.0,0.0001216,2]
[404306663,1770052238575,-536.0,0.00012174,2]
[404306664,1770052238584,-1344.0,0.00012184,2]
[404306665,1770052238593,-435.0,0.00012198,2]
[404306666,1770052238603,-1410.0,0.00012222,2]
[404306667,1770052238612,-469.0,0.00012231,2]
[404306668,1770052238621,-184.0,0.00012256,2]
[404306669,1770052238630,-1246.97137256,0.00012342,2]
[404306670,1770052238639,-500.0,0.00012399,2]
[404306671,1770052238649,-46638.69,0.00012473,2]
[404306672,1770052238664,-836.83007605,0.00012497,2]
[404306673,1770052238674,-302.32,0.00012497,2]
[404306674,1770052238684,-255.0,0.00012574,2]
[404306675,1770052238694,-200.0,0.00012612,2]
[404306676,1770052238703,-500.0,0.00012612,2]
[404306677,1770052238713,-200.0,0.00012612,2]
[404306678,1770052238724,-420.0,0.00012647,2]
[404306679,1770052238734,-1680.0,0.00012666,2]
[404306680,1770052238743,-195.0,0.00012667,2]
[404306681,1770052238752,-500.0,0.00012667,2]
[404306682,1770052238761,-193.0,0.00012667,2]
[404306683,1770052238771,-250.0,0.00012667,2]
[404306684,1770052238780,-195.0,0.00012667,2]
[404306685,1770052238789,-300.0,0.00012667,2]
[404306686,1770052238798,-300.0,0.00012667,2]
[404306687,1770052238810,-500.0,0.00012673,2]
[404306688,1770052238819,-34965.56083801,0.00012857,2]
[404306689,1770052238828,-24162.98599796,0.00012857,2]
[404306690,1770052238838,-388.17458479,0.00012947,2]
[404306691,1770052238847,-1000.0,0.00012981,2]
[404306692,1770052238857,-98441.87394799,0.00013,2]
[404306693,1770052238866,-159.93,0.0001306,2]
[404306694,1770052238876,-456.97,0.0001306,2]
[404306695,1770052238885,-302.32,0.00013122,2]
[404306696,1770052238895,-257.65826531,0.0001316,2]
[404306697,1770052238906,-500.0,0.0001316,2]
[404306698,1770052238916,-200.0,0.0001316,2]
[404306699,1770052238926,-500.0,0.00013178,2]
[404306700,1770052238935,-184.05,0.00013319,2]
[404306701,1770052238945,-34965.56083801,0.00013577,2]
[404306702,1770052238955,-836.83007605,0.00013577,2]
[404306703,1770052238964,-24162.98599796,0.00013577,2]
[404306704,1770052238974,-10000.0,0.00013598,2]
[404306705,1770052238983,-201.378,0.00013697,2]
[404306706,1770052238993,-500.0,0.00013698,2]
[404306707,1770052239003,-500.0,0.00013698,2]
[404306708,1770052239012,-500.0,0.00013698,2]
[404306709,1770052239022,-500.0,0.00013698,2]
[404306710,1770052239031,-500.0,0.00013698,2]
[404306711,1770052239040,-500.0,0.00013698,2]
[404306712,1770052239049,-500.0,0.00013698,2]
[404306713,1770052239059,-500.0,0.00013698,2]
[404306714,1770052239069,-500.0,0.00013698,2]
[404306715,1770052239079,-500.0,0.00013698,2]
[404306716,1770052239088,-500.0,0.00013698,2]
[404306717,1770052239098,-500.0,0.00013698,2]
[404306718,1770052239107,-500.0,0.00013698,2]
[404306719,1770052239116,-500.0,0.00013698,2]
[404306720,1770052239126,-500.0,0.00013698,2]
[404306721,1770052239135,-500.0,0.00013698,2]
[404306722,1770052239144,-500.0,0.00013698,2]
[404306723,1770052239153,-500.0,0.00013698,2]
[404306724,1770052239163,-500.0,0.00013698,2]
[404306725,1770052239173,-500.0,0.00013698,2]
[404306726,1770052239182,-500.0,0.00013698,2]
[404306727,1770052239192,-500.0,0.00013698,2]
[404306728,1770052239201,-366.58671911,0.00013698,2]
[404306729,1770052239210,-500.0,0.00013698,2]
[404306730,1770052239220,-500.0,0.00013698,2]
[404306731,1770052239231,-500.0,0.00013698,2]
[404306732,1770052239240,-453.09371713,0.00013698,2]
[404306733,1770052239250,-500.0,0.00013698,2]
[404306734,1770052239260,-500.0,0.00013698,2]
[404306735,1770052239270,-500.0,0.00013698,2]
[404306736,1770052239281,-500.0,0.00013698,2]
[404306737,1770052239290,-500.0,0.00013698,2]
[404306738,1770052239300,-500.0,0.00013698,2]
[404306739,1770052239313,-500.0,0.00013698,2]
[404306740,1770052239323,-500.0,0.00013698,2]
[404306741,1770052239332,-500.0,0.00013698,2]
[404306742,1770052239342,-500.0,0.00013698,2]
[404306743,1770052239351,-500.0,0.00013698,2]
[404306744,1770052239361,-500.0,0.00013698,2]
[404306745,1770052239371,-500.0,0.00013698,2]
[404306746,1770052239380,-500.0,0.00013698,2]
[404306747,1770052239390,-500.0,0.00013698,2]
[404306748,1770052239399,-500.0,0.00013698,2]
[404306749,1770052239409,-520.9392261,0.00013698,2]
[404306750,1770052239418,-500.0,0.00013698,2]
[404306751,1770052239428,-500.0,0.00013698,2]
[404306752,1770052239437,-500.0,0.00013698,2]
[404306753,1770052239446,-500.0,0.00013698,2]
[404306754,1770052239455,-500.0,0.00013698,2]
[404306755,1770052239464,-390.7411446,0.00013698,2]
[404306756,1770052239474,-500.0,0.00013698,2]
[404306757,1770052239483,-500.0,0.00013698,2]
[404306758,1770052239492,-500.0,0.00013698,2]
[404306759,1770052239501,-469.64985738,0.00013698,2]
[404306760,1770052239510,-617.4,0.00013698,2]
[404306761,1770052239519,-617.4,0.00013698,2]
[404306762,1770052239528,-617.4,0.00013698,2]
[404306763,1770052239537,-617.4,0.00013698,2]
[404306764,1770052239546,-617.4,0.00013698,2]
[404306765,1770052239555,-617.4,0.00013698,2]
[404306766,1770052239566,-617.4,0.00013698,2]
[404306767,1770052239575,-617.4,0.00013698,2]
[404306768,1770052239584,-617.4,0.00013698,2]
[404306769,1770052239593,-617.4,0.00013698,2]
[404306770,1770052239617,-617.4,0.00013698,2]
[404306771,1770052239628,-617.4,0.00013698,2]
[404306772,1770052239638,-617.4,0.00013698,2]
[404306773,1770052239647,-617.4,0.00013698,2]
[404306774,1770052239659,-617.4,0.00013698,2]
[404306775,1770052239670,-617.4,0.00013698,2]
[404306776,1770052239679,-595.4,0.00013698,2]
[404306777,1770052239688,-595.4,0.00013698,2]
[404306778,1770052239698,-595.4,0.00013698,2]
[404306779,1770052239709,-595.4,0.00013698,2]
[404306780,1770052239718,-595.4,0.00013698,2]
[404306781,1770052239727,-595.4,0.00013698,2]
[404306782,1770052239739,-595.4,0.00013698,2]
[404306783,1770052239748,-595.4,0.00013698,2]
[404306784,1770052239758,-595.4,0.00013698,2]
[404306785,1770052239767,-500.0,0.00013698,2]
[404306786,1770052239776,-500.0,0.00013698,2]
[404306787,1770052239786,-500.0,0.00013698,2]
[404306788,1770052239795,-500.0,0.00013698,2]
[404306790,1770052239805,-500.0,0.00013698,2]
[404306791,1770052239815,-500.0,0.00013698,2]
[404306792,1770052239824,-500.0,0.00013698,2]
[404306793,1770052239833,-500.0,0.00013698,2]
[404306794,1770052239843,-500.0,0.00013698,2]
[404306795,1770052239852,-500.0,0.00013698,2]
[404306796,1770052239862,-500.0,0.00013698,2]
[404306797,1770052239871,-500.0,0.00013698,2]
[404306798,1770052239881,-500.0,0.00013698,2]
[404306799,1770052239891,-507.90611429,0.00013698,2]
[404306800,1770052239900,-500.0,0.00013698,2]
[404306801,1770052239910,-500.0,0.00013698,2]
[404306802,1770052239920,-500.0,0.00013698,2]
[404306803,1770052239929,-500.0,0.00013698,2]
[404306804,1770052239938,-500.0,0.00013698,2]
[404306805,1770052239947,-500.0,0.00013698,2]
[404306806,1770052239957,-500.0,0.00013698,2]
[404306807,1770052239967,-500.0,0.00013698,2]
[404306809,1770052239982,-500.0,0.00013698,2]
[404306810,1770052239991,-500.0,0.00013698,2]
[404306811,1770052240001,-500.0,0.00013698,2]
[404306812,1770052240011,-500.0,0.00013698,2]
[404306813,1770052240020,-500.0,0.00013698,2]
[404306814,1770052240030,-500.0,0.00013698,2]
[404306815,1770052240040,-500.0,0.00013698,2]
[404306816,1770052240050,-500.0,0.00013698,2]
[404306817,1770052240061,-500.0,0.00013698,2]
[404306818,1770052240070,-500.0,0.00013698,2]
[404306819,1770052240080,-500.0,0.00013698,2]
[404306820,1770052240090,-500.0,0.00013698,2]
[404306821,1770052240101,-500.0,0.00013698,2]
[404306822,1770052240111,-500.0,0.00013698,2]
[404306823,1770052240122,-500.0,0.00013698,2]
[404306824,1770052240132,-500.0,0.00013698,2]
[404306825,1770052240142,-500.0,0.00013698,2]
[404306826,1770052240152,-500.0,0.00013698,2]
[404306827,1770052240161,-164.4906593,0.00013698,2]
[404306828,1770052240170,-586.19962979,0.00013698,2]
[404306829,1770052240180,-500.0,0.00013698,2]
[404306830,1770052240190,-500.0,0.00013698,2]
[404306831,1770052240200,-500.0,0.00013698,2]
[404306832,1770052240210,-500.0,0.00013698,2]
[404306833,1770052240220,-500.0,0.00013698,2]
[404306834,1770052240230,-500.0,0.00013698,2]
[404306835,1770052240240,-500.0,0.00013698,2]
[404306836,1770052240250,-500.0,0.00013698,2]
[404306837,1770052240260,-500.0,0.00013698,2]
[404306838,1770052240270,-500.0,0.00013698,2]
[404306839,1770052240280,-500.0,0.00013698,2]
[404306840,1770052240290,-500.0,0.00013698,2]
[404306841,1770052240300,-500.0,0.00013698,2]
[404306842,1770052240311,-500.0,0.00013698,2]
[404306843,1770052240321,-500.0,0.00013698,2]
[404306844,1770052240335,-504.58121564,0.00013698,2]
[404306845,1770052240347,-1081.79,0.00013698,2]
[404306846,1770052240357,-1081.79,0.00013698,2]
[404306847,1770052240368,-1081.79,0.00013698,2]
[404306848,1770052240378,-1081.79,0.00013698,2]
[404306849,1770052240388,-1081.79,0.00013698,2]
[404306850,1770052240398,-1081.79,0.00013698,2]
[404306851,1770052240409,-1081.79,0.00013698,2]
[404306852,1770052240419,-1081.79,0.00013698,2]
[404306853,1770052240429,-1081.79,0.00013698,2]
[404306854,1770052240439,-500.0,0.00013698,2]
[404306855,1770052240449,-500.0,0.00013698,2]
[404306856,1770052240459,-500.0,0.00013698,2]
[404306857,1770052240469,-500.0,0.00013698,2]
[404306858,1770052240479,-500.0,0.00013698,2]
[404306859,1770052240489,-500.0,0.00013698,2]
[404306860,1770052240499,-500.0,0.00013698,2]
[404306861,1770052240509,-500.0,0.00013698,2]
[404306862,1770052240519,-502.06664745,0.00013698,2]
[404306863,1770052240533,-500.0,0.00013698,2]
[404306864,1770052240543,-500.0,0.00013698,2]
[404306865,1770052240553,-500.0,0.00013698,2]
[404306866,1770052240565,-512.55184272,0.00013698,2]
[404306867,1770052240575,-500.0,0.00013698,2]
[404306868,1770052240585,-500.0,0.00013698,2]
[404306869,1770052240595,-312.15594151,0.00013698,2]
[404306870,1770052240605,-500.0,0.00013698,2]
[404306871,1770052240615,-500.0,0.00013698,2]
[404306872,1770052240625,-500.0,0.00013698,2]
[404306874,1770052240635,-500.0,0.00013698,2]
[404306875,1770052240645,-500.0,0.00013698,2]
[404306876,1770052240655,-500.0,0.00013698,2]
[404306877,1770052240668,-500.0,0.00013698,2]
[404306878,1770052240678,-500.0,0.00013698,2]
[404306879,1770052240688,-500.0,0.00013698,2]
[404306880,1770052240699,-1017.42,0.00013698,2]
[404306881,1770052240708,-1017.42,0.00013698,2]
[404306882,1770052240718,-1017.42,0.00013698,2]
[404306883,1770052240733,-1017.42,0.00013698,2]
[404306884,1770052240743,-1017.42,0.00013698,2]
[404306885,1770052240753,-1017.42,0.00013698,2]
[404306886,1770052240763,-1017.42,0.00013698,2]
[404306887,1770052240773,-1017.42,0.00013698,2]
[404306888,1770052240783,-1017.42,0.00013698,2]
[404306889,1770052240793,-279.17200518,0.00013698,2]
[404306890,1770052240802,-513.79,0.00013698,2]
[404306891,1770052240813,-513.79,0.00013698,2]
[404306892,1770052240822,-513.79,0.00013698,2]
[404306893,1770052240831,-513.79,0.00013698,2]
[404306894,1770052240841,-513.79,0.00013698,2]
[404306895,1770052240851,-513.79,0.00013698,2]
[404306896,1770052240860,-513.79,0.00013698,2]
[404306897,1770052240870,-513.79,0.00013698,2]
[404306898,1770052240879,-513.79,0.00013698,2]
[404306899,1770052240889,-520.18,0.00013698,2]
[404306900,1770052240899,-520.18,0.00013698,2]
[404306901,1770052240908,-520.18,0.00013698,2]
[404306902,1770052240920,-520.18,0.00013698,2]
[404306903,1770052240930,-520.18,0.00013698,2]
[404306904,1770052240939,-520.18,0.00013698,2]
[404306905,1770052240949,-520.18,0.00013698,2]
[404306906,1770052240958,-520.18,0.00013698,2]
[404306907,1770052240967,-520.18,0.00013698,2]
[404306908,1770052240977,-535.53919898,0.00013698,2]
[404306909,1770052240987,-640.79,0.00013698,2]
[404306910,1770052240996,-640.79,0.00013698,2]
[404306911,1770052241005,-640.79,0.00013698,2]
[404306912,1770052241015,-640.79,0.00013698,2]
[404306913,1770052241024,-640.79,0.00013698,2]
[404306914,1770052241033,-640.79,0.00013698,2]
[404306915,1770052241043,-640.79,0.00013698,2]
[404306916,1770052241052,-640.79,0.00013698,2]
[404306917,1770052241062,-640.79,0.00013698,2]
[404306918,1770052241071,-500.0,0.00013698,2]
[404306919,1770052241081,-500.0,0.00013698,2]
[404306920,1770052241090,-500.0,0.00013698,2]
[404306921,1770052241100,-500.0,0.00013698,2]
[404306922,1770052241109,-500.0,0.00013698,2]
[404306923,1770052241122,-500.0,0.00013698,2]
[404306924,1770052241131,-334.5135457,0.00013698,2]
[404306925,1770052241141,-500.0,0.00013698,2]
[404306926,1770052241150,-500.0,0.00013698,2]
[404306927,1770052241159,-500.0,0.00013698,2]
[404306928,1770052241169,-500.0,0.00013698,2]
[404306929,1770052241179,-500.0,0.00013698,2]
[404306930,1770052241399,-500.0,0.00013698,2]
[404306931,1770052241473,-500.0,0.00013698,2]
[404306932,1770052241483,-500.0,0.00013698,2]
[404306933,1770052241494,-500.0,0.00013698,2]
[404306934,1770052241504,-500.0,0.00013698,2]
[404306935,1770052241514,-500.0,0.00013698,2]
[404306936,1770052241526,-500.0,0.00013698,2]
[404306937,1770052241536,-500.0,0.00013698,2]
[404306938,1770052241546,-500.0,0.00013698,2]
[404306939,1770052241557,-500.0,0.00013698,2]
[404306940,1770052241566,-500.0,0.00013698,2]
[404306941,1770052241575,-500.0,0.00013698,2]
[404306942,1770052241585,-222.64,0.00013698,2]
[404306943,1770052241594,-711.64,0.00013699,2]
[404306944,1770052241604,-384.91,0.00013699,2]
[404306945,1770052241613,-320.76,0.00013699,2]
[404306946,1770052241623,-267.3,0.00013699,2]
[404306947,1770052241634,-222.75,0.00013699,2]
[404306948,1770052241644,-2800.26,0.00013699,2]
[404306949,1770052241654,-185.63,0.00013699,2]
[404306950,1770052241666,-500.0,0.00013708,2]
[404306951,1770052241676,-200.0,0.00013708,2]
[404306952,1770052241685,-433.0,0.00013726,2]
[404306953,1770052241695,-302.32,0.00013747,2]
[404306954,1770052241705,-587.0,0.0001389,2]
[404306955,1770052241715,-240.22,0.000139,2]
[404306956,1770052241724,-2351.0,0.00013933,2]
[404306957,1770052241734,-595.4,0.00013972,2]
[404306958,1770052241743,-500.0,0.00013972,2]
[404306959,1770052241752,-500.0,0.00013972,2]
[404306960,1770052241761,-500.0,0.00013972,2]
[404306961,1770052241770,-500.0,0.00013972,2]
[404306962,1770052241780,-1081.79,0.00013972,2]
[404306963,1770052241789,-500.0,0.00013972,2]
[404306964,1770052241799,-1017.42,0.00013972,2]
[404306965,1770052241810,-513.79,0.00013972,2]
[404306966,1770052241819,-520.18,0.00013972,2]
[404306967,1770052241829,-640.79,0.00013972,2]
[404306968,1770052241840,-500.0,0.00013972,2]
[404306969,1770052241849,-500.0,0.00013973,2]
[404306970,1770052241859,-500.0,0.00013973,2]
[404306971,1770052241869,-500.0,0.00013973,2]
[404306972,1770052241879,-500.0,0.00013973,2]
[404306973,1770052241888,-544.91692471,0.00013973,2]
[404306974,1770052241897,-500.0,0.00013973,2]
[404306975,1770052241906,-500.0,0.00013973,2]
[404306976,1770052241916,-170.36367963,0.00013973,2]
[404306977,1770052241925,-164.70227396,0.00013973,2]
[404306978,1770052241934,-543.12258786,0.00013973,2]
[404306979,1770052241944,-541.62569807,0.00013973,2]
[404306980,1770052241954,-500.0,0.00013973,2]
[404306981,1770052241968,-500.0,0.00013973,2]
[404306982,1770052241978,-500.0,0.00013973,2]
[404306983,1770052241988,-500.0,0.00013973,2]
[404306984,1770052241998,-500.0,0.00013973,2]
[404306985,1770052242007,-500.0,0.00013973,2]
[404306986,1770052242017,-569.16951839,0.00013973,2]
[404306987,1770052242026,-500.0,0.00013973,2]
[404306988,1770052242036,-163.90719075,0.00013973,2]
[404306989,1770052242045,-500.12230816,0.00013973,2]
[404306990,1770052242055,-259.40505883,0.00013973,2]
[404306991,1770052242068,-181.57502123,0.00013973,2]
[404306992,1770052242078,-500.0,0.00013973,2]
[404306993,1770052242088,-500.0,0.00013973,2]
[404306994,1770052242097,-500.0,0.00013973,2]
[404306995,1770052242107,-500.0,0.00013973,2]
[404306996,1770052242117,-500.0,0.00013973,2]